Body Name,Body Unit,Service Label,Service Code ,Organisation Unit,Expenditure,Payment Date,Transaction Number,Net Payment,Supplier Name,Supplier ID 
North West Leicestershire District Council ,31UH ,Finance,FINPLA,Financial Planning,schedule of payments,05/12/2012,1248592,"3,366,732.00",Leicestershire County Council,A000950
North West Leicestershire District Council ,31UH ,Finance,FINPLA,Financial Planning,schedule of payments,05/12/2012,1248593,"3,366,732.00",Leicestershire County Council,A000950
North West Leicestershire District Council ,31UH ,Finance,FINPLA,Financial Planning,schedule of payments,05/12/2012,1248594,"3,366,732.00",Leicestershire County Council,A000950
North West Leicestershire District Council ,31UH ,Finance,FINPLA,Financial Planning,schedule of payments,05/12/2012,1248599,"3,366,732.00",Leicestershire County Council,A000950
North West Leicestershire District Council ,31UH ,Finance,FINPLA,Financial Planning,NNDR payment,18/12/2012,1249295,"1,923,091.00",Department for Communities & Local Government,A028518
North West Leicestershire District Council ,31UH ,Finance,FINPLA,Financial Planning,NNDR payment,06/12/2012,1248670,"1,923,090.00",Department for Communities & Local Government,A028518
North West Leicestershire District Council ,31UH ,Finance,FINPLA,Financial Planning,NNDR payment,06/12/2012,1248671,"1,923,089.00",Department for Communities & Local Government,A028518
North West Leicestershire District Council ,31UH ,Finance,FINPLA,Financial Planning,Policing,05/12/2012,1248595,"550,632.00",The OPCC for Leicestershire,A007096
North West Leicestershire District Council ,31UH ,Finance,FINPLA,Financial Planning,Policing,05/12/2012,1248596,"550,632.00",The OPCC for Leicestershire,A007096
North West Leicestershire District Council ,31UH ,Finance,FINPLA,Financial Planning,Policing,05/12/2012,1248597,"550,632.00",The OPCC for Leicestershire,A007096
North West Leicestershire District Council ,31UH ,Finance,FINPLA,Financial Planning,Policing,05/12/2012,1248598,"550,632.00",The OPCC for Leicestershire,A007096
North West Leicestershire District Council ,31UH ,Housing Repairs,HRAHRM,HRA Housing Repairs & Maintenance,Decent homes payment,11/12/2012,1248903,"218,190.57",Lovell Partnerships Ltd,A039973
North West Leicestershire District Council ,31UH ,Finance,FINPLA,Financial Planning,Precept payment,05/12/2012,1248600,"169,054.00","Leicester, Leicestershire &",A028339
North West Leicestershire District Council ,31UH ,Finance,FINPLA,Financial Planning,Precept payment,05/12/2012,1248601,"169,054.00","Leicester, Leicestershire &",A028339
North West Leicestershire District Council ,31UH ,Finance,FINPLA,Financial Planning,Precept payment,05/12/2012,1248602,"169,054.00","Leicester, Leicestershire &",A028339
North West Leicestershire District Council ,31UH ,Finance,FINPLA,Financial Planning,Precept payment,05/12/2012,1248603,"169,054.00","Leicester, Leicestershire &",A028339
North West Leicestershire District Council ,31UH ,Finance,FINPLA,Financial Planning,S106 development payment,05/12/2012,1248451,"107,706.01",Ashby De La Zouch Town Council,A000091
North West Leicestershire District Council ,31UH ,Housing Repairs,HRAHRM,HRA Housing Repairs & Maintenance,Consultancy - Property Professional Services,19/12/2012,1246076,"106,436.00",Savills Commercial Limited,A032547
North West Leicestershire District Council ,31UH ,Housing Repairs,HRAHRM,HRA Housing Repairs & Maintenance,Decent homes payment,11/12/2012,1248898,"60,755.19",Kier Services Maintenance East Ltd,A039980
North West Leicestershire District Council ,31UH ,Housing Repairs,HRAHRM,HRA Housing Repairs & Maintenance,Building Services,19/12/2012,1249056,"53,330.18",J Tomlinson Ltd,A033342
North West Leicestershire District Council ,31UH ,Housing Repairs,HRAHRM,HRA Housing Repairs & Maintenance,Building Services,19/12/2012,1249057,"48,737.03",J Tomlinson Ltd,A033342
North West Leicestershire District Council ,31UH ,Housing,HRAHM,HRA Housing Management,Central billing,29/11/2012,1248230,"47,900.42",Collective Enterprises Ltd,A036453
North West Leicestershire District Council ,31UH ,Housing Repairs,HRAHRM,HRA Housing Repairs & Maintenance,Building Services,19/12/2012,1249055,"47,530.90",J Tomlinson Ltd,A033342
North West Leicestershire District Council ,31UH ,Housing Repairs,HRAHRM,HRA Housing Repairs & Maintenance,Housing repairs and maintenance,19/12/2012,1249001,"27,817.50",Herbert Baggaley Construction Limited,A036241
North West Leicestershire District Council ,31UH ,Finance,FINPLA,Financial Planning,Leasing - Vehicles and Equipment,19/12/2012,1249119,"22,844.51",SG Equipment Finance Limited,A030097
North West Leicestershire District Council ,31UH ,Street Management,ENOT,Environment Transport,Fuel ,05/12/2012,1248414,"20,740.24",Pace Petroleum Ltd,A034942
North West Leicestershire District Council ,31UH ,Street Management,ENOT,Environment Transport,Fuel ,28/11/2012,1247565,"20,310.84",Pace Petroleum Ltd,A034942
North West Leicestershire District Council ,31UH ,Street Management,ENOWM,Environment Waste Management,Waste Disposal - Recyclable containers,05/12/2012,1247281,"19,656.00",Straight Plc,A024906
North West Leicestershire District Council ,31UH ,Finance,FINPLA,Financial Planning,Audit Fee,05/12/2012,1248196,"19,365.50",KPMG LLP,A035156
North West Leicestershire District Council ,31UH ,Finance,EXCH,Exchequer Services,IT - Telephone and computing,05/12/2012,1248591,"18,850.39",British Telecommunications Plc,A000233
North West Leicestershire District Council ,31UH ,Finance,EXCH,Exchequer Services,Recruitment - Agency Broker,19/12/2012,1249396,"13,899.77",Comensura Limited,A036958
North West Leicestershire District Council ,31UH ,Street Management,ENOT,Environment Transport,Recruitment - Agency Broker,11/12/2012,1248610,"13,886.26",Comensura Limited,A036958
North West Leicestershire District Council ,31UH ,Finance,FINPLA,Financial Planning,Training,05/12/2012,1248208,"13,450.00",Hinckley & Bosworth Borough Council,A000770
North West Leicestershire District Council ,31UH ,Housing Repairs,HRAHRM,HRA Housing Repairs & Maintenance,Building Services,11/12/2012,1248891,"13,355.10",J Tomlinson Ltd,A033342
North West Leicestershire District Council ,31UH ,Housing Repairs,HRAHRM,HRA Housing Repairs & Maintenance,Fuel,11/12/2012,1248901,"13,220.34",Leicestershire County Council,A000950
North West Leicestershire District Council ,31UH ,Finance,EXCH,Exchequer Services,Energy - Gas - Contract 2 + 5 + 6,29/11/2012,1248235,"12,786.43",Corona Energy Retail 4 Ltd,A035709
North West Leicestershire District Council ,31UH ,Finance,FINPLA,Financial Planning,Subscriptions,05/12/2012,1248197,"12,098.00",Audit Commission,A000110
North West Leicestershire District Council ,31UH ,Finance,EXCH,Exchequer Services,Recruitment - Agency Broker,28/11/2012,1247739,"11,820.14",Comensura Limited,A036958
North West Leicestershire District Council ,31UH ,Finance,EXCH,Exchequer Services,utilities payment,19/12/2012,1249303,"11,738.79",British Gas Business,A034733
North West Leicestershire District Council ,31UH ,Environmental Health,EES,Environmental Services,Disabled facilities Grant,05/12/2012,1248513,"11,245.50",D P Brown Building Services,A039922
North West Leicestershire District Council ,31UH ,Finance,EXCH,Exchequer Services,Recruitment - Agency Broker,19/12/2012,1249143,"10,794.17",Comensura Limited,A036958
North West Leicestershire District Council ,31UH ,Finance,FINPLA,Financial Planning,Leasing - Vehicles and Equipment,19/12/2012,1249083,"10,769.95",SG Equipment Finance Limited,A030097
North West Leicestershire District Council ,31UH ,Housing Repairs,HRAHRM,HRA Housing Repairs & Maintenance,Housing repairs and maintenance,28/11/2012,1247950,"10,578.95",Herbert Baggaley Construction Limited,A036241
North West Leicestershire District Council ,31UH ,Environmental Health,EES,Environmental Services,Disabled facilities Grant,28/11/2012,1248005,"10,000.00",Jez Pike,A039950
North West Leicestershire District Council ,31UH ,Corporate Director,HR,Human Resources,Advertising Agency,05/12/2012,1248171,"9,950.00",Euro RSCG People T/A Havas People Ltd,A001395
North West Leicestershire District Council ,31UH ,Communications,CS,Corporate - Customer Services,Mail Services - Franking Machines,28/11/2012,1247795,"9,923.93",Neopost Limited,A000079
North West Leicestershire District Council ,31UH ,Housing Repairs,HRAHRM,HRA Housing Repairs & Maintenance,Grant payment,11/12/2012,1248714,"9,355.00",East Midlands Housing Assocn,A000530
North West Leicestershire District Council ,31UH ,Finance,FINPLA,Financial Planning,Leasing - Vehicles and Equipment,19/12/2012,1249084,"9,263.79",SG Equipment Finance Limited,A030097
North West Leicestershire District Council ,31UH ,Housing Repairs,HRAHRM,HRA Housing Repairs & Maintenance,Waste Disposal - Confidential ,28/11/2012,1248088,"7,791.18",Groundwork Leicester & Leicestershire Limited,A036206
North West Leicestershire District Council ,31UH ,Housing Repairs,HRAHRM,HRA Housing Repairs & Maintenance,Waste Disposal - Confidential ,05/12/2012,1248247,"7,753.51",Groundwork Leicester & Leicestershire Limited,A036206
North West Leicestershire District Council ,31UH ,Information Technology,ICT,ICT Services,Photocopiers and consumables,06/12/2012,1248683,"7,563.86",The Danwood Group Ltd,A001301
North West Leicestershire District Council ,31UH ,Legal & Democratic,LDLS,Legal Services,Legal - Case Management System inc. associated training and services for installation,19/12/2012,1249146,"7,560.00",Thomson Reuters (Professional) UK Limited,A037595
North West Leicestershire District Council ,31UH ,Housing Repairs,HRAHRM,HRA Housing Repairs & Maintenance,Waste Disposal - Confidential ,05/12/2012,1248244,"7,494.32",Groundwork Leicester & Leicestershire Limited,A036206
North West Leicestershire District Council ,31UH ,Legal & Democratic,LDELC,Electoral & Land Charges,Printing - Election Specialists - Ballot Papers and Postal Votes,11/12/2012,1248678,"7,262.67",Print Image Network Limited,A035574
North West Leicestershire District Council ,31UH ,Environmental Health,EES,Environmental Services,Diabled facilities Grant,28/11/2012,1248064,"7,000.00",MFW Building Services Ltd,A038916
North West Leicestershire District Council ,31UH ,Finance,EXCH,Exchequer Services,Recruitment - Agency Broker,05/12/2012,1248174,"6,947.26",Comensura Limited,A036958
North West Leicestershire District Council ,31UH ,Legal & Democratic,LDCE,Civic Expenses,IT - software licence,05/12/2012,1248471,"6,660.00",Associated Knowledge Systems Ltd,A021795
North West Leicestershire District Council ,31UH ,Housing,HRAPBS,HRA Performance & Business Support,"ICT - Software, Maintenance and Licenses for IBS Housing",28/11/2012,1247976,"6,300.00",Capita Business Services Ltd,A002968
North West Leicestershire District Council ,31UH ,Housing Repairs,HRAHRM,HRA Housing Repairs & Maintenance,Waste Disposal - Confidential ,28/11/2012,1248086,"6,254.27",Groundwork Leicester & Leicestershire Limited,A036206
North West Leicestershire District Council ,31UH ,Leisure & Culture,CULTEV,Cultural Services Arts & Events,Events - Seasonal - Christmas lighting,19/12/2012,1248958,"6,238.00",Turnock Ltd,A023267
North West Leicestershire District Council ,31UH ,Housing Repairs,HRAHRM,HRA Housing Repairs & Maintenance,Housing repairs and maintenance,11/12/2012,1248790,"6,069.96",Apollo Property Services Group Limited,A036945
North West Leicestershire District Council ,31UH ,Housing Repairs,HRAHRM,HRA Housing Repairs & Maintenance,Housing repairs and maintenance,11/12/2012,1248791,"6,069.96",Apollo Property Services Group Limited,A036945
North West Leicestershire District Council ,31UH ,Leisure & Culture,SPA,Sport & Physical Activity,land charges,11/12/2012,1248632,"6,000.00",Leicestershire & Rutland County,A038063
North West Leicestershire District Council ,31UH ,Housing Repairs,HRAHRM,HRA Housing Repairs & Maintenance,Waste Disposal - Confidential ,05/12/2012,1248246,"5,883.43",Groundwork Leicester & Leicestershire Limited,A036206
North West Leicestershire District Council ,31UH ,Housing,HRAHM,HRA Housing Management,Events,19/12/2012,1249403,"5,764.74",Leicestershire County Council,A000950
North West Leicestershire District Council ,31UH ,Leisure & Culture,CULTYP,Cultural Services Children & YoungPeople,Support payment,19/12/2012,1249284,"5,670.25",LCC Warren Hills Primary School,A028026
North West Leicestershire District Council ,31UH ,Information Technology,ICT,ICT Services,IT - Telephone and computing,19/12/2012,1249123,"5,498.78",Virgin Media Business,A008908
North West Leicestershire District Council ,31UH ,Planning & Development,ECCTV,Environment - Town Centre/CCTV,Events - Seasonal - Christmas lighting,11/12/2012,1248250,"5,344.50",Turnock Ltd,A023267
North West Leicestershire District Council ,31UH ,Information Technology,ICT,ICT Services,Photocopiers and consumables,29/11/2012,1248237,"5,293.09",The Danwood Group Ltd,A001301
North West Leicestershire District Council ,31UH ,Housing Repairs,HRAHRM,HRA Housing Repairs & Maintenance,Housing repairs and maintenance,11/12/2012,1248784,"4,976.72",Apollo Property Services Group Limited,A036945
North West Leicestershire District Council ,31UH ,Housing Repairs,HRAHRM,HRA Housing Repairs & Maintenance,Housing repairs and maintenance,11/12/2012,1248785,"4,976.72",Apollo Property Services Group Limited,A036945
North West Leicestershire District Council ,31UH ,Housing Repairs,HRAHRM,HRA Housing Repairs & Maintenance,Repairs and Maintenance,28/11/2012,1247892,"4,897.54",Lakers UK,A031787
North West Leicestershire District Council ,31UH ,Environmental Health,EES,Environmental Services,Plumbing & heating systems,28/11/2012,1248002,"4,820.00",Rudkin & Herbert,A024387
North West Leicestershire District Council ,31UH ,Housing Repairs,HRAHRM,HRA Housing Repairs & Maintenance,Fuel servicing (Hsg Maintenance),11/12/2012,1248904,"4,792.17",Elite Sweep Service,A035675
North West Leicestershire District Council ,31UH ,Housing Repairs,HRAHRM,HRA Housing Repairs & Maintenance,Repairs and Maintenance,28/11/2012,1247910,"4,760.16",Lakers UK,A031787
North West Leicestershire District Council ,31UH ,Housing Repairs,HRAHRM,HRA Housing Repairs & Maintenance,Housing repairs and maintenance,11/12/2012,1248786,"4,516.45",Apollo Property Services Group Limited,A036945
North West Leicestershire District Council ,31UH ,Housing Repairs,HRAHRM,HRA Housing Repairs & Maintenance,Housing repairs and maintenance,11/12/2012,1248787,"4,516.45",Apollo Property Services Group Limited,A036945
North West Leicestershire District Council ,31UH ,Housing Repairs,HRAHRM,HRA Housing Repairs & Maintenance,Housing repairs and maintenance,11/12/2012,1248788,"4,516.45",Apollo Property Services Group Limited,A036945
North West Leicestershire District Council ,31UH ,Housing Repairs,HRAHRM,HRA Housing Repairs & Maintenance,Housing repairs and maintenance,11/12/2012,1248789,"4,516.45",Apollo Property Services Group Limited,A036945
North West Leicestershire District Council ,31UH ,Leisure & Culture,CULTEV,Cultural Services Arts & Events,Partnership Grant,19/12/2012,1249379,"4,500.00",Mantle Community Arts Limited,A001039
North West Leicestershire District Council ,31UH ,Street Management,ENOT,Environment Transport,Vehicle Dealership,05/12/2012,1248465,"4,200.00",Motors (Coalville) Ltd,A001157
North West Leicestershire District Council ,31UH ,Information Technology,ICT,ICT Services,Photocopiers and consumables,29/11/2012,1248238,"4,006.74",The Danwood Group Ltd,A001301
North West Leicestershire District Council ,31UH ,Planning & Development,ECCTV,Environment - Town Centre/CCTV,Security - Provide Monitoring Services in respect of CCTV,19/12/2012,1249231,"3,923.00",Premier Security Services (Midlands) Limited,A038132
North West Leicestershire District Council ,31UH ,Property Services,PROPFM,Property Facilities Management,Energy - Electricity - Contract 1,19/12/2012,1249014,"3,920.90",Southern Electric,A030266
North West Leicestershire District Council ,31UH ,Environmental Health,EES,Environmental Services,Diabled facilities Grant,28/11/2012,1248065,"3,740.85",Sandaland Properties (Measham) Ltd,A031587
North West Leicestershire District Council ,31UH ,Housing Repairs,HRAHRM,HRA Housing Repairs & Maintenance,Waste Disposal - Confidential ,05/12/2012,1248245,"3,713.22",Groundwork Leicester & Leicestershire Limited,A036206
North West Leicestershire District Council ,31UH ,Environmental Health,EEHL,Environmental Health & Licensing,Diabled facilities Grant,11/12/2012,1248732,"3,650.00",MFW Building Services Ltd,A038916
North West Leicestershire District Council ,31UH ,Environmental Health,EES,Environmental Services,Diabled facilities Grant,11/12/2012,1248950,"3,625.00",Green Builders,A006910
North West Leicestershire District Council ,31UH ,Planning & Development,EPP,Environment Planning Policy,CCTV - Touchview System,19/12/2012,1249149,"3,432.00",Essa Technology,A036876
North West Leicestershire District Council ,31UH ,Environmental Health,EEHL,Environmental Health & Licensing,Building Services,05/12/2012,1248207,"3,304.30",John Merison BMC Ltd,A001092
North West Leicestershire District Council ,31UH ,Chief Exec,CHEX,Chief Executive,professional charges,19/12/2012,1249051,"3,245.55",Broadsted Associates Ltd,A039356
North West Leicestershire District Council ,31UH ,Environmental Health,EEHL,Environmental Health & Licensing,Diabled facilities Grant,05/12/2012,1248284,"3,235.91",Adaptions,A038668
North West Leicestershire District Council ,31UH ,Legal & Democratic,LDELC,Electoral & Land Charges,Mail services,11/12/2012,1248680,"3,222.31",Royal Mail Group Plc,A001418
North West Leicestershire District Council ,31UH ,Environmental Health,EES,Environmental Services,Diabled facilities Grant,11/12/2012,1248948,"3,208.45",Adaptions,A038668
North West Leicestershire District Council ,31UH ,Legal & Democratic,LDLS,Legal Services,Books - Legal,11/12/2012,1248711,"3,137.82",Sweet & Maxwell Ltd,A001611
North West Leicestershire District Council ,31UH ,Corporate Director,HR,Human Resources,Surveys - Part Place Tracker Survey,05/12/2012,1248475,"3,100.00",NWA Social & Market Research Limited,A037146
North West Leicestershire District Council ,31UH ,Housing Repairs,HRAHRM,HRA Housing Repairs & Maintenance,Energy commodities,19/12/2012,1249036,"3,080.16",Coal4Energy Ltd,A031928
North West Leicestershire District Council ,31UH ,Housing Repairs,HRAHRM,HRA Housing Repairs & Maintenance,Repairs and Maintenance,05/12/2012,1248328,"3,001.16",Lakers UK,A031787
North West Leicestershire District Council ,31UH ,Environmental Health,EEHL,Environmental Health & Licensing,Diabled facilities Grant,19/12/2012,1249029,"3,000.00",W P Builders & Joiners,A037119
North West Leicestershire District Council ,31UH ,Housing Repairs,HRAHRM,HRA Housing Repairs & Maintenance,Repairs and Maintenance,28/11/2012,1247908,"2,987.56",Lakers UK,A031787
North West Leicestershire District Council ,31UH ,Property Services,PROPCL,Property Commercial Lettings,Mail Supplies -Franking Machine,05/12/2012,1248420,"2,953.80",Purchase Power,A008204
North West Leicestershire District Council ,31UH ,Environmental Health,EES,Environmental Services,Electrical contractor - repairs,28/11/2012,1248003,"2,946.27",Kelite Ltd,A032373
North West Leicestershire District Council ,31UH ,Housing Repairs,HRAHRM,HRA Housing Repairs & Maintenance,Repairs and Maintenance,11/12/2012,1248803,"2,864.83",Lakers UK,A031787
North West Leicestershire District Council ,31UH ,Housing,HRAPBS,HRA Performance & Business Support,"ICT - Software, Maintenance and Licenses for IBS Housing",11/12/2012,1248780,"2,850.00",Capita Business Services Ltd,A002968
North West Leicestershire District Council ,31UH ,Corporate Director,HR,Human Resources,childcare vouchers,19/12/2012,1249239,"2,766.00",Premier Employer Solutions Limited,A038606
North West Leicestershire District Council ,31UH ,Leisure & Culture,CULTEV,Cultural Services Arts & Events,Event supplies,05/12/2012,1248575,"2,751.00",Chameleon Pro Audio & Lighting Ltd,A027592
North West Leicestershire District Council ,31UH ,Street Management,ENOP,Environment Parks,Electrical contractor - testing,19/12/2012,1248749,"2,670.00",Electract Limited,A000548
North West Leicestershire District Council ,31UH ,Leisure Centres,HLC,Hermitage Leisure Centre,Event supplies,19/12/2012,1249113,"2,648.91",Leicestershire County Counc,A008606
North West Leicestershire District Council ,31UH ,Environmental Health,EES,Environmental Services,Diabled facilities Grant,11/12/2012,1248949,"2,628.42",Adaptions,A038668
North West Leicestershire District Council ,31UH ,Housing Repairs,HRAHRM,HRA Housing Repairs & Maintenance,Waste Disposal - Confidential ,28/11/2012,1248087,"2,585.06",Groundwork Leicester & Leicestershire Limited,A036206
North West Leicestershire District Council ,31UH ,Housing Repairs,HRAHRM,HRA Housing Repairs & Maintenance,Repairs and Maintenance,05/12/2012,1248339,"2,574.14",Lakers UK,A031787
North West Leicestershire District Council ,31UH ,Legal & Democratic,LDLS,Legal Services,professional charges,05/12/2012,1248583,"2,561.92",Marrons Consultancies Limited,A016315
North West Leicestershire District Council ,31UH ,Housing,HRAOPS,HRA Older Persons Service,Alarms - older persons system repairs and maintenance,28/11/2012,1247796,"2,560.00",Tunstall Healthcare (UK) Limited,A001701
North West Leicestershire District Council ,31UH ,Housing Repairs,HRAHRM,HRA Housing Repairs & Maintenance,Trade Waste,19/12/2012,1249293,"2,556.44",Ward Recycling,A035471
North West Leicestershire District Council ,31UH ,Legal & Democratic,LDLS,Legal Services,professional charges,19/12/2012,1249153,"2,400.00",Sindy B Communications Ltd,A039474
North West Leicestershire District Council ,31UH ,Information Technology,ICT,ICT Services,IT - Computer Equipment,28/11/2012,1247624,"2,356.20",ComputerLand UK Plc,A031430
North West Leicestershire District Council ,31UH ,Finance,FINPLA,Financial Planning,Leasing - Vehicles and Equipment,28/11/2012,1247871,"2,250.00",Asset Advantage Limited,A034516
North West Leicestershire District Council ,31UH ,Leisure Centres,HLC,Hermitage Leisure Centre,Energy - Electricity - Contract 1,19/12/2012,1249375,"2,177.25",Southern Electric,A030266
North West Leicestershire District Council ,31UH ,Housing Repairs,HRAHRM,HRA Housing Repairs & Maintenance,Repairs and Maintenance,11/12/2012,1248804,"2,108.46",Lakers UK,A031787
North West Leicestershire District Council ,31UH ,Legal & Democratic,LDELC,Electoral & Land Charges,Audio and Lighting,11/12/2012,1248666,"2,067.25",Chameleon Pro Audio & Lighting Ltd,A027592
North West Leicestershire District Council ,31UH ,Street Management,ENOT,Environment Transport,Vehicle build and Repairs,11/12/2012,1248872,"2,000.00",SAUNDERS OF STAPLETON LTD,A029076
North West Leicestershire District Council ,31UH ,Finance,FINPLA,Financial Planning,project management fees,05/12/2012,1248418,"2,000.00",Charnwood Borough Council,A000323
North West Leicestershire District Council ,31UH ,Leisure Centres,HPLC,Hood Park Leisure Centre,Energy - Electricity - Contract 1,28/11/2012,1247841,"1,970.83",Southern Electric,A030266
North West Leicestershire District Council ,31UH ,Finance,EXCH,Exchequer Services,IT - software services,05/12/2012,1248265,"1,955.45",Selima Limited,A010859
North West Leicestershire District Council ,31UH ,Legal & Democratic,LDELC,Electoral & Land Charges,Printing Electoral Documents,11/12/2012,1248674,"1,861.68",SCI Print Limited,A028974
North West Leicestershire District Council ,31UH ,Information Technology,ICT,ICT Services,IT - Telecommunications and data services,19/12/2012,1248976,"1,824.58",Freedom Communications (UK) Ltd,A032826
North West Leicestershire District Council ,31UH ,Legal & Democratic,LDELC,Electoral & Land Charges,Mail services,11/12/2012,1248709,"1,800.00",Royal Mail Group Plc,A001418
North West Leicestershire District Council ,31UH ,Housing Repairs,HRAHRM,HRA Housing Repairs & Maintenance,Fuel servicing (Hsg Maintenance),28/11/2012,1247952,"1,792.00",Elite Sweep Service,A035675
North West Leicestershire District Council ,31UH ,Leisure Centres,HPLC,Hood Park Leisure Centre,Energy - Electricity - Contract 1,19/12/2012,1249096,"1,756.19",Southern Electric,A030266
North West Leicestershire District Council ,31UH ,Leisure Centres,HLC,Hermitage Leisure Centre,Water - Sewerage services,19/12/2012,1249093,"1,754.64",Severn Trent Water Limited,A001468
North West Leicestershire District Council ,31UH ,Legal & Democratic,LDLS,Legal Services,Fees,11/12/2012,1248661,"1,744.00",The Law Society,A039211
North West Leicestershire District Council ,31UH ,Neighbourhoods & Communities,NACN,N & C Neighbourhoods,Grant payment,05/12/2012,1248582,"1,720.83",Age Concern Leicestershire & Rutland (Welfare services) ltd,A027552
North West Leicestershire District Council ,31UH ,Street Management,ENOT,Environment Transport,Wire products,05/12/2012,1248466,"1,680.00",DR Baling Wire Manufacturers Ltd,A032890
North West Leicestershire District Council ,31UH ,Housing Repairs,HRAHRM,HRA Housing Repairs & Maintenance,Repairs and Maintenance,05/12/2012,1248327,"1,668.22",Lakers UK,A031787
North West Leicestershire District Council ,31UH ,Street Management,ESS,Environment - Street Scene,Accommodation - Bed and Breakfast,05/12/2012,1248177,"1,540.00",The Cedars,A027796
North West Leicestershire District Council ,31UH ,Street Management,ENOT,Environment Transport,Bags - Polythene bags manufacturer,19/12/2012,1249039,"1,423.80",BPI Recycled Products,A017624
North West Leicestershire District Council ,31UH ,Housing Repairs,HRAHRM,HRA Housing Repairs & Maintenance,Repairs and Maintenance,19/12/2012,1248979,"1,419.16",Lakers UK,A031787
North West Leicestershire District Council ,31UH ,Information Technology,ICT,ICT Services,IT - Scanning equipment,11/12/2012,1248660,"1,407.42",Idox Software Ltd,A034157
North West Leicestershire District Council ,31UH ,Environmental Health,EES,Environmental Services,Animals - Boarding Kennels,05/12/2012,1248249,"1,403.88",College Garth Boarding Kennels,A000385
North West Leicestershire District Council ,31UH ,Property Services,PROPFM,Property Facilities Management,Clock Repair & Maintenance,28/11/2012,1247773,"1,392.00",G D Armitage (Clock & Belfry) Work Ltd,A000073
North West Leicestershire District Council ,31UH ,Housing Repairs,HRAHRM,HRA Housing Repairs & Maintenance,Fuel servicing (Hsg Maintenance),28/11/2012,1247923,"1,380.00",Elite Sweep Service,A035675
North West Leicestershire District Council ,31UH ,Environmental Health,EES,Environmental Services,Training,11/12/2012,1248663,"1,372.92",Hinckley & Bosworth Borough Council,A000770
North West Leicestershire District Council ,31UH ,Street Management,ENOT,Environment Transport,Vehicle Repairs - Road Sweepers,05/12/2012,1248447,"1,348.25",Scarab Sweepers Limited,A001445
North West Leicestershire District Council ,31UH ,Housing Repairs,HRAHRM,HRA Housing Repairs & Maintenance,Fuel servicing (Hsg Maintenance),28/11/2012,1247951,"1,320.00",Elite Sweep Service,A035675
North West Leicestershire District Council ,31UH ,Housing Repairs,HRAHRM,HRA Housing Repairs & Maintenance,Repairs and Maintenance,05/12/2012,1248340,"1,287.80",Lakers UK,A031787
North West Leicestershire District Council ,31UH ,Corporate Director,HR,Human Resources,Policing,28/11/2012,1247764,"1,250.00",The OPCC for Leicestershire,A007096
North West Leicestershire District Council ,31UH ,Housing Repairs,HRAHRM,HRA Housing Repairs & Maintenance,Repairs and Maintenance,28/11/2012,1247879,"1,200.19",Lakers UK,A031787
North West Leicestershire District Council ,31UH ,Corporate Director,HR,Human Resources,Policing,28/11/2012,1247763,"1,197.00",The OPCC for Leicestershire,A007096
North West Leicestershire District Council ,31UH ,Corporate Director,HR,Human Resources,Policing,28/11/2012,1247777,"1,197.00",The OPCC for Leicestershire,A007096
North West Leicestershire District Council ,31UH ,Housing Strategy,HS,Community - Housing Strategy,Accommodation - Bed and Breakfast,28/11/2012,1247817,"1,190.00",The Cedars,A027796
North West Leicestershire District Council ,31UH ,Finance,EXCH,Exchequer Services,Debt Collection,11/12/2012,1248896,"1,178.65",Kings Armoured Security Services Ltd,A004468
North West Leicestershire District Council ,31UH ,Property Services,PROPCL,Property Commercial Lettings,Repairs an Maintenance,19/12/2012,1248870,"1,172.00",Alf Wright Construction Limited,A036239
North West Leicestershire District Council ,31UH ,Housing,HRAHM,HRA Housing Management,Legionella water monitoring,19/12/2012,1249259,"1,165.78",Rentokil Initial UK Limited,A037013
North West Leicestershire District Council ,31UH ,Legal & Democratic,LDELC,Electoral & Land Charges,Mail services,11/12/2012,1248708,"1,163.77",Royal Mail Group Plc,A001418
North West Leicestershire District Council ,31UH ,Leisure Centres,HPLC,Hood Park Leisure Centre,Water - Sewerage services,19/12/2012,1249095,"1,076.13",Severn Trent Water Limited,A001468
North West Leicestershire District Council ,31UH ,Leisure & Culture,CULTIC,Cultural Services TIC,entertainment,19/12/2012,1249270,"1,064.70",Ashby Dramatic Society,A034672
North West Leicestershire District Council ,31UH ,Legal & Democratic,LDELC,Electoral & Land Charges,Stationery - Burial & Legal,11/12/2012,1248676,"1,040.40",Shaw & Sons Ltd,A001476
North West Leicestershire District Council ,31UH ,Street Management,ENOT,Environment Transport,Vehicle products,19/12/2012,1249053,"1,040.00",Maha UK Limited,A031879
North West Leicestershire District Council ,31UH ,Housing Strategy,HS,Community - Housing Strategy,Accomodation - Guest house for homeless people,05/12/2012,1248517,"1,032.50",Broadlawns Guest House,A000236
North West Leicestershire District Council ,31UH ,Street Management,ENOGT,Environment General Technician,"Environment - Design, Manufacture and Installation and Proof load testing of sewage pump lifting equipment",11/12/2012,1248648,"1,019.22",T Allen Engineering Limited,A038138
North West Leicestershire District Council ,31UH ,Housing,HRAHM,HRA Housing Management,Water - Sewerage services,19/12/2012,1249406,"1,003.66",Severn Trent Water Limited,A001468
North West Leicestershire District Council ,31UH ,Legal & Democratic,LDLS,Legal Services,professional charges,11/12/2012,1248720,"1,000.00",Mr Tim Sheppard,A040036
North West Leicestershire District Council ,31UH ,Leisure & Culture,CULTEV,Cultural Services Arts & Events,Events - firework displays,05/12/2012,1246239,"1,000.00",Firework World Ltd,A039864
North West Leicestershire District Council ,31UH ,Neighbourhoods & Communities,NACN,N & C Neighbourhoods,Contribution payment,11/12/2012,1248755,985.24,Broomleys Community Allotment Society,A039895
North West Leicestershire District Council ,31UH ,Leisure & Culture,CULTEV,Cultural Services Arts & Events,Entertainment - Marquee Hire,05/12/2012,1248279,972.00,City B Group,A035479
North West Leicestershire District Council ,31UH ,Street Management,ESS,Environment - Street Scene,professional charges,05/12/2012,1248168,950.00,Mallard Consultancy Ltd,A039987
North West Leicestershire District Council ,31UH ,Information Technology,ICT,ICT Services,Photocopiers and consumables,28/11/2012,1248006,938.71,Danwood Contract Rentals,A033719
North West Leicestershire District Council ,31UH ,Housing Repairs,HRAHRM,HRA Housing Repairs & Maintenance,Repairs and Maintenance,28/11/2012,1247903,922.25,Lakers UK,A031787
North West Leicestershire District Council ,31UH ,Housing,HRAHM,HRA Housing Management,Energy - Electricity - Contract 1,28/11/2012,1247873,908.41,Southern Electric,A030266
North West Leicestershire District Council ,31UH ,Information Technology,ICT,ICT Services,ICT Software,05/12/2012,1248272,900.00,Redtitan Limited,A039997
North West Leicestershire District Council ,31UH ,Leisure & Culture,CULTEV,Cultural Services Arts & Events,Horticultural works,28/11/2012,1247767,893.20,Cadeby Tree Trust,A027405
North West Leicestershire District Council ,31UH ,Housing,HRAOPS,HRA Older Persons Service,Art work,28/11/2012,1247295,887.46,Rikke Digerud,A039678
North West Leicestershire District Council ,31UH ,Legal & Democratic,LDELC,Electoral & Land Charges,Printing - Election Specialists - Ballot Papers and Postal Votes,11/12/2012,1248677,873.65,Print Image Network Limited,A035574
North West Leicestershire District Council ,31UH ,Street Management,ENOT,Environment Transport,Transport supplies,28/11/2012,1246908,858.75,Digraph Transport Supplies Ltd,A000486
North West Leicestershire District Council ,31UH ,Property Services,PROPFM,Property Facilities Management,Windows - Glass/glazing,05/12/2012,1247571,858.53,Coalville Glass & Glazing Co Ltd,A000366
North West Leicestershire District Council ,31UH ,Environmental Health,EEHL,Environmental Health & Licensing,Diabled facilities Grant,11/12/2012,1248731,850.00,David Kirton Designs,A038386
North West Leicestershire District Council ,31UH ,Housing Repairs,HRAHRM,HRA Housing Repairs & Maintenance,Repairs and Maintenance,11/12/2012,1248806,835.34,Lakers UK,A031787
North West Leicestershire District Council ,31UH ,Corporate Director,HR,Human Resources,Training - Specialist Health & Safety Training,19/12/2012,1249398,826.90,HS Direct Ltd,A028815
North West Leicestershire District Council ,31UH ,Street Management,ESS,Environment - Street Scene,Media - Camera Equipment,11/12/2012,1248615,810.00,The Enigma Encoding Company Ltd,A032888
North West Leicestershire District Council ,31UH ,Street Management,ENOP,Environment Parks,Ground Maintenance works,11/12/2012,1248631,800.00,Manor Landscapes,A035186
North West Leicestershire District Council ,31UH ,Legal & Democratic,LDLS,Legal Services,Books - Legal,11/12/2012,1248710,796.00,Sweet & Maxwell Ltd,A001611
North West Leicestershire District Council ,31UH ,Housing Repairs,HRAHRM,HRA Housing Repairs & Maintenance,Repairs and Maintenance,19/12/2012,1248987,793.02,Lakers UK,A031787
North West Leicestershire District Council ,31UH ,Information Technology,ICT,ICT Services,Photocopiers and consumables,29/11/2012,1248243,791.68,The Danwood Group Ltd,A001301
North West Leicestershire District Council ,31UH ,Housing Repairs,HRAHRM,HRA Housing Repairs & Maintenance,Housing Maintenance - Supply and Fit of Composite Doors and UPVC Frames,19/12/2012,1249365,790.48,I G Doors Limited,A038041
North West Leicestershire District Council ,31UH ,Street Management,ENOT,Environment Transport,Fuel ,19/12/2012,1249125,789.26,Calor Gas Limited,A032686
North West Leicestershire District Council ,31UH ,Leisure Centres,HPLC,Hood Park Leisure Centre,Water - Sewerage services,28/11/2012,1247810,789.00,Severn Trent Water Limited,A001468
North West Leicestershire District Council ,31UH ,Leisure Centres,HPLC,Hood Park Leisure Centre,Water - Sewerage services,19/12/2012,1249094,789.00,Severn Trent Water Limited,A001468
North West Leicestershire District Council ,31UH ,Information Technology,ICT,ICT Services,ICT installation,11/12/2012,1247857,789.00,Icon Network Solutions Ltd,A039942
North West Leicestershire District Council ,31UH ,Housing Repairs,HRAHRM,HRA Housing Repairs & Maintenance,Repairs and Maintenance,28/11/2012,1247889,786.91,Lakers UK,A031787
North West Leicestershire District Council ,31UH ,Leisure & Culture,CULTEV,Cultural Services Arts & Events,Reindeer Hire,28/11/2012,1247975,770.00,Animal Enterprises,A034118
North West Leicestershire District Council ,31UH ,Planning & Development,ECP,Environment Community Planning,Environment - Cell Grown Trees (Whips),05/12/2012,1248217,767.88,Cheviot Trees Limited,A037926
North West Leicestershire District Council ,31UH ,Property Services,PROPCL,Property Commercial Lettings,IT - Telephone and computing,11/12/2012,1248777,763.28,British Telecommunications Plc,A000233
North West Leicestershire District Council ,31UH ,Corporate Director,HR,Human Resources,Advertising Agency,05/12/2012,1248203,757.23,Euro RSCG People T/A Havas People Ltd,A001395
North West Leicestershire District Council ,31UH ,Housing Repairs,HRAHRM,HRA Housing Repairs & Maintenance,Alarms - older persons system repairs and maintenance,19/12/2012,1249175,756.14,Tunstall Healthcare (UK) Limited,A001701
North West Leicestershire District Council ,31UH ,Leisure Centres,HLC,Hermitage Leisure Centre,Routine Maintenance,11/12/2012,1248696,745.00,Complete Cooling Services Ltd,A022180
North West Leicestershire District Council ,31UH ,Housing Repairs,HRAHRM,HRA Housing Repairs & Maintenance,Gas & Electricity - Gas installation ,11/12/2012,1248908,744.33,British Gas Trading Limited,A026237
North West Leicestershire District Council ,31UH ,Housing Repairs,HRAHRM,HRA Housing Repairs & Maintenance,Gas & Electricity - Gas installation ,11/12/2012,1248796,744.33,British Gas Trading Limited,A026237
North West Leicestershire District Council ,31UH ,Housing Repairs,HRAHRM,HRA Housing Repairs & Maintenance,Gas & Electricity - Gas installation ,11/12/2012,1248841,744.33,British Gas Trading Limited,A026237
North West Leicestershire District Council ,31UH ,Housing Repairs,HRAHRM,HRA Housing Repairs & Maintenance,Gas & Electricity - Gas installation ,11/12/2012,1248842,744.33,British Gas Trading Limited,A026237
North West Leicestershire District Council ,31UH ,Street Management,ENOGT,Environment General Technician,Small civils and plant hire,28/11/2012,1247753,737.46,Cuckoo Gap Limited,A000438
North West Leicestershire District Council ,31UH ,Housing Repairs,HRAHRM,HRA Housing Repairs & Maintenance,Lifts - supply and maintenance,28/11/2012,1247878,724.41,Morris Vermaport Limited,A001152
North West Leicestershire District Council ,31UH ,Street Management,ENOT,Environment Transport,Cleaning producrs,28/11/2012,1247625,723.45,Tennant UK Cleaning Solutions Limited,A000063
North West Leicestershire District Council ,31UH ,Housing Repairs,HRAHRM,HRA Housing Repairs & Maintenance,Repairs and Maintenance,19/12/2012,1249368,711.71,Lakers UK,A031787
North West Leicestershire District Council ,31UH ,Street Management,ENOP,Environment Parks,Electrical contractor - repairs,28/11/2012,1248047,710.00,D Walker,A038885
North West Leicestershire District Council ,31UH ,Street Management,ENOP,Environment Parks,Repair and Maintenance,28/11/2012,1247862,710.00,D Walker,A038885
North West Leicestershire District Council ,31UH ,Housing Repairs,HRAHRM,HRA Housing Repairs & Maintenance,Repairs and Maintenance,19/12/2012,1249191,707.94,Lakers UK,A031787
North West Leicestershire District Council ,31UH ,Legal & Democratic,LDCE,Civic Expenses,Conference Training,05/12/2012,1248267,695.00,The Association of Electoral Administrators Ltd,A033402
North West Leicestershire District Council ,31UH ,Housing Repairs,HRAHRM,HRA Housing Repairs & Maintenance,Fuel servicing (Hsg Maintenance),11/12/2012,1248907,693.60,Elite Sweep Service,A035675
North West Leicestershire District Council ,31UH ,Legal & Democratic,LDCE,Civic Expenses,Sign Manufacturer,05/12/2012,1248464,687.20,G and G Signs,A001111
North West Leicestershire District Council ,31UH ,Housing Repairs,HRAHRM,HRA Housing Repairs & Maintenance,Housing Maintenance - Supply and Fit of Composite Doors and UPVC Frames,19/12/2012,1249165,685.75,I G Doors Limited,A038041
North West Leicestershire District Council ,31UH ,Leisure & Culture,LCM,Leisure & Cult Mangt,Trophy Suppliers,19/12/2012,1249219,679.83,Coalville Trophy Centre,A000375
North West Leicestershire District Council ,31UH ,Environmental Health,EEHL,Environmental Health & Licensing,Animals - Veterinary Care,19/12/2012,1248902,675.36,Eville And Jones Limited,A033670
North West Leicestershire District Council ,31UH ,Property Services,PROPCL,Property Commercial Lettings,Security Services,28/11/2012,1247403,674.00,Secom Plc,A003044
North West Leicestershire District Council ,31UH ,Planning & Development,EDC,Environment - Development Control,Advertising Agency,05/12/2012,1248402,672.63,Euro RSCG People T/A Havas People Ltd,A001395
North West Leicestershire District Council ,31UH ,Corporate Director,HR,Human Resources,Medical fees,28/11/2012,1247851,669.00,Forge Health Limited,A031645
North West Leicestershire District Council ,31UH ,Leisure Centres,HPLC,Hood Park Leisure Centre,Leisure - Swimming teachers/badges,28/11/2012,1247814,664.75,Swimming Teachers Association Ltd,A001616
North West Leicestershire District Council ,31UH ,Street Management,ENOT,Environment Transport,Fuel ,11/12/2012,1248752,662.90,Pace Petroleum Ltd,A034942
North West Leicestershire District Council ,31UH ,Leisure & Culture,CULTIC,Cultural Services TIC,entertainment,19/12/2012,1249271,658.80,Ashby Dramatic Society Trust,A027431
North West Leicestershire District Council ,31UH ,Housing Repairs,HRAHRM,HRA Housing Repairs & Maintenance,Repairs and Maintenance,11/12/2012,1248802,653.94,Lakers UK,A031787
North West Leicestershire District Council ,31UH ,Housing Repairs,HRAHRM,HRA Housing Repairs & Maintenance,Repairs and Maintenance,19/12/2012,1249205,638.93,Lakers UK,A031787
North West Leicestershire District Council ,31UH ,Housing Repairs,HRAHRM,HRA Housing Repairs & Maintenance,Building Advice - Construction Safety Advice,11/12/2012,1248862,625.00,Cope Safety Management Limited,A036053
North West Leicestershire District Council ,31UH ,Housing,HRAPBS,HRA Performance & Business Support,IT - Software - Performance Management,05/12/2012,1248605,613.67,Hitec (Laboratories) Ltd TA Ten Sfotware,A030422
North West Leicestershire District Council ,31UH ,Housing Repairs,HRAHRM,HRA Housing Repairs & Maintenance,Repairs and Maintenance,19/12/2012,1249190,612.90,Lakers UK,A031787
North West Leicestershire District Council ,31UH ,Property Services,PROPCL,Property Commercial Lettings,Repairs an Maintenance,19/12/2012,1248868,604.00,Alf Wright Construction Limited,A036239
North West Leicestershire District Council ,31UH ,Leisure & Culture,CULTIC,Cultural Services TIC,Entertainment,11/12/2012,1248946,602.10,Andrew Fairbrother,A038299
North West Leicestershire District Council ,31UH ,Street Management,ESS,Environment - Street Scene,Event supplies,19/12/2012,1249145,601.00,Leicestershire County Council,A027423
North West Leicestershire District Council ,31UH ,Leisure Centres,HLC,Hermitage Leisure Centre,Entertainment ,05/12/2012,1248290,600.00,Andrew McGowan,A039996
North West Leicestershire District Council ,31UH ,Street Management,ENOP,Environment Parks,Horticultural works,05/12/2012,1248166,600.00,Four Counties Tree Specialists Ltd,A039324
North West Leicestershire District Council ,31UH ,Street Management,ENOP,Environment Parks,Ground Maintenance works,28/11/2012,1248058,600.00,Manor Landscapes,A035186
North West Leicestershire District Council ,31UH ,Housing Repairs,HRAHRM,HRA Housing Repairs & Maintenance,Repairs and Maintenance,11/12/2012,1248906,599.08,Lakers UK,A031787
North West Leicestershire District Council ,31UH ,Leisure Centres,HLC,Hermitage Leisure Centre,Water - Sewerage services,28/11/2012,1247790,597.00,Severn Trent Water Limited,A001468
North West Leicestershire District Council ,31UH ,Leisure Centres,HLC,Hermitage Leisure Centre,Water - Sewerage services,19/12/2012,1249395,597.00,Severn Trent Water Limited,A001468
North West Leicestershire District Council ,31UH ,Leisure Centres,HPLC,Hood Park Leisure Centre,Telecommunication - Line Rental,05/12/2012,1248469,580.83,Virgin Media Business,A035373
North West Leicestershire District Council ,31UH ,Leisure Centres,HLBC,Hermitage Bar & Catering,Catering Supplies - Confectionery.,11/12/2012,1248726,576.23,Palmer Harvey Mclane Ltd,A001264
North West Leicestershire District Council ,31UH ,Housing,HRAOPS,HRA Older Persons Service,Rental payment,28/11/2012,1248053,570.48,Leicestershire County Council,A000950
North West Leicestershire District Council ,31UH ,Neighbourhoods & Communities,NACCS,N & C Community Safety,Home Safety Assessment,11/12/2012,1248730,555.00,Safe Start-Home Safety,A039090
North West Leicestershire District Council ,31UH ,Housing Strategy,HS,Community - Housing Strategy,Rent payment,11/12/2012,1248887,550.00,Countrywide Residential Lettings,A034847
North West Leicestershire District Council ,31UH ,Street Management,ENOP,Environment Parks,groundworks,28/11/2012,1247766,550.00,F Woodward & Sons (Woodward Turfcare),A038270
North West Leicestershire District Council ,31UH ,Property Services,PROPFM,Property Facilities Management,Security Systems - Fire Detection,05/12/2012,1248467,550.00,TECSERV UK LIMITED,A028261
North West Leicestershire District Council ,31UH ,Leisure Centres,HLBC,Hermitage Bar & Catering,Catering Supplies - Confectionery.,19/12/2012,1249122,549.41,Palmer Harvey Mclane Ltd,A001264
North West Leicestershire District Council ,31UH ,Information Technology,ICT,ICT Services,Subscription - Annual Web Benefit Calculator,05/12/2012,1247985,540.00,Ovaltech Limited,A031693
North West Leicestershire District Council ,31UH ,Housing Repairs,HRAHRM,HRA Housing Repairs & Maintenance,Housing Maintenance - Supply and Fit of Composite Doors and UPVC Frames,19/12/2012,1249366,539.91,I G Doors Limited,A038041
North West Leicestershire District Council ,31UH ,Housing Repairs,HRAHRM,HRA Housing Repairs & Maintenance,Repairs and Maintenance,19/12/2012,1249189,532.32,Lakers UK,A031787
North West Leicestershire District Council ,31UH ,Leisure Centres,HPBC,Hood Park Bar and Catering,Catering Supplies - Confectionery.,28/11/2012,1247844,525.36,Palmer Harvey Mclane Ltd,A001264
North West Leicestershire District Council ,31UH ,Housing Repairs,HRAHRM,HRA Housing Repairs & Maintenance,Repairs and Maintenance,19/12/2012,1249367,523.96,Lakers UK,A031787
North West Leicestershire District Council ,31UH ,Planning & Development,EDC,Environment - Development Control,Advertising Agency,05/12/2012,1248400,522.18,Euro RSCG People T/A Havas People Ltd,A001395
North West Leicestershire District Council ,31UH ,Street Management,ENOT,Environment Transport,Vehicle - Servicing & Parts - Crane,19/12/2012,1249018,521.54,Walker & Co Hydraulic Services Ltd,A034386
North West Leicestershire District Council ,31UH ,Planning & Development,EDC,Environment - Development Control,Planning - Advice,11/12/2012,1248664,520.00,Sanham Agricultural Planning Ltd,A035463
North West Leicestershire District Council ,31UH ,Housing Strategy,HS,Community - Housing Strategy,Accommodation - Bed and Breakfast,28/11/2012,1247816,520.00,The Cedars,A027796
North West Leicestershire District Council ,31UH ,Property Services,PROPCL,Property Commercial Lettings,Rental Charges,05/12/2012,1248419,516.05,Pitney Bowes Finance Plc,A032630
North West Leicestershire District Council ,31UH ,Street Management,ENOP,Environment Parks,Quarry Products,11/12/2012,1248959,513.31,Aggregate Industries Uk Ltd,A000940
North West Leicestershire District Council ,31UH ,Corporate Director,HR,Human Resources,Counselling,19/12/2012,1249151,510.00,Health Management Ltd,A038840
North West Leicestershire District Council ,31UH ,Leisure & Culture,CULTEV,Cultural Services Arts & Events,Event supplies,05/12/2012,1248574,508.00,Confetti Magic Ltd,A038988
North West Leicestershire District Council ,31UH ,Housing Repairs,HRAHRM,HRA Housing Repairs & Maintenance,Repairs and Maintenance,19/12/2012,1249212,502.00,Lakers UK,A031787
North West Leicestershire District Council ,31UH ,Property Services,PROPCL,Property Commercial Lettings,Water - Sewerage services,28/11/2012,1248078,500.75,Severn Trent Water Limited,A001468
North West Leicestershire District Council ,31UH ,Leisure Centres,HPLC,Hood Park Leisure Centre,Legal - Metering services,11/12/2012,1248706,500.33,Siemens Energy Services Ltd,A024546
